bitfinex/quotes_ETHUSD_20250702
["timestamp","ask_amount","ask_price","bid_price","bid_amount"]
[1751480191464,0.01,2573.7,2573.5,7.08793084]
[1751480191665,0.01,2573.7,2573.6,3.8856077]
[1751480191860,0.01,2573.7,2573.6,8.52560768]
[1751480192066,0.01,2573.7,2573.6,3.8856077]
[1751480192466,0.01,2573.7,2573.6,3.14056846]
[1751480192974,0.01,2573.7,2573.6,5.74263882]
[1751480193293,0.01,2573.7,2573.6,10.087]
[1751480194284,0.01,2573.7,2573.6,2.01]
[1751480195393,0.01,2573.7,2573.6,5.8956077]
[1751480197085,0.01,2573.7,2573.6,6.6880077]
[1751480197890,0.01,2573.7,2573.6,11.32800768]
[1751480198092,0.01,2573.7,2573.6,13.67624327]
[1751480199990,0.01,2573.7,2573.6,7.78063557]
[1751480200200,0.01,2573.7,2573.6,17.86363557]
[1751480200401,0.01,2573.7,2573.6,21.74924327]
[1751480203311,1e-08,2573.7,2573.6,32.29924327]
[1751480203481,1e-08,2573.7,2573.6,34.05970127]
[1751480203683,1e-08,2573.7,2573.6,21.66624327]
[1751480204106,1e-08,2573.7,2573.6,31.74824327]
[1751480214432,1e-08,2573.7,2573.6,10.53560768]
[1751480214616,1e-08,2573.7,2573.6,18.60460768]
[1751480215704,1e-08,2573.7,2573.6,14.71899998]
[1751480216042,1e-08,2573.7,2573.6,18.60460768]
[1751480216742,1e-08,2573.7,2573.6,6.64999998]
[1751480216919,1e-08,2573.7,2573.6,14.71799998]
[1751480217533,1e-08,2573.7,2573.6,18.60360768]
[1751480218236,1e-08,2573.7,2573.6,31.67461438]
[1751480220235,1e-08,2573.7,2573.6,24.71799998]
[1751480220531,1e-08,2573.7,2573.6,14.71599998]
[1751480221944,1e-08,2573.7,2573.6,18.60160768]
[1751480223446,1e-08,2573.7,2573.6,14.71599998]
[1751480223832,1e-08,2573.7,2573.6,18.60160768]
[1751480224452,1e-08,2573.7,2573.6,14.71599998]
[1751480225723,0.78620001,2573.7,2573.5,0.2136]
[1751480225942,0.78620001,2573.7,2573.5,0.02]
[1751480226340,14.56428659,2573.6,2573.5,0.02]
[1751480226536,20.29487506,2573.6,2573.5,0.02]
[1751480227061,21.1178107,2573.6,2573.5,0.02]
[1751480227368,20.29487506,2573.6,2573.5,0.02]
[1751480227723,0.55,2573.3,2573.2,2.008]
[1751480227925,11.3362,2573.3,2573.2,2.008]
[1751480228266,11.3362,2573.3,2573.0,9.358]
[1751480228267,0.7862,2573.1,2573.0,9.358]
[1751480228425,10.7862,2573.1,2573.0,0.02]
[1751480231264,15.22256275,2573.1,2573.0,0.02]
[1751480231472,11.3362,2573.1,2573.0,0.02]
[1751480231672,13.94485033,2573.1,2573.0,0.02]
[1751480231874,17.83121308,2573.1,2573.0,0.02]
[1751480232172,13.94485033,2573.1,2573.0,0.02]
[1751480233585,17.83121308,2573.1,2573.0,0.02]
[1751480233959,13.94485033,2573.1,2573.0,0.02]
[1751480235686,17.83121308,2573.1,2573.0,0.02]
[1751480238799,3.88681592,2572.8,2572.7,0.02]
[1751480239001,28.44300251,2572.8,2572.7,0.02]
[1751480240586,24.55618659,2572.8,2572.7,0.02]
[1751480240774,28.44300251,2572.8,2572.7,0.02]
[1751480241198,24.55618659,2572.8,2572.7,0.02]
[1751480241365,26.4583638,2572.8,2572.7,0.02]
[1751480241568,30.34517972,2572.8,2572.7,0.02]
[1751480241967,26.4583638,2572.8,2572.7,0.02]
[1751480242890,30.34517972,2572.8,2572.7,0.02]
[1751480243066,26.4583638,2572.8,2572.7,0.02]
[1751480247269,13.23027721,2572.8,2572.7,0.02]
[1751480249369,12.68027721,2572.8,2572.7,0.02]
[1751480251873,13.23027721,2572.8,2572.7,0.02]
[1751480253767,21.70474809,2572.8,2572.7,0.02]
[1751480254495,25.59156401,2572.8,2572.7,0.02]
[1751480255202,26.41731577,2572.8,2572.7,0.02]
[1751480255572,26.41731577,2572.8,2572.7,2.1907]
[1751480255890,22.53049985,2572.8,2572.7,2.1907]
[1751480257802,12.72792897,2572.8,2572.7,2.1907]
[1751480258003,10.82575176,2572.8,2572.7,2.1907]
[1751480258506,0.82575176,2572.8,2572.7,2.1907]
[1751480258674,0.82575176,2573.1,2572.7,2.1907]
[1751480258873,1.01935176,2573.1,2572.7,2.1907]
[1751480259298,1.01935176,2573.1,2572.7,3.0239]
[1751480259498,0.7878,2573.5,2572.8,0.32175]
[1751480259692,0.1936,2573.3,2572.8,0.51535]
[1751480259894,0.82575176,2573.2,2572.8,0.51535]
[1751480260077,0.82575176,2573.2,2572.8,10.51535]
[1751480260273,0.1936,2573.3,2572.8,10.51535]
[1751480260493,0.1936,2573.3,2572.9,2.49249952]
[1751480260494,1.01935176,2573.3,2572.9,2.49249952]
[1751480260708,0.1936,2573.3,2572.9,2.49249952]
[1751480261480,1e-08,2573.7,2573.0,10.8332]
[1751480261702,0.1936,2573.6,2573.2,0.1936]
[1751480262903,0.1936,2573.6,2573.2,1.49688]
[1751480263272,0.1936,2573.6,2573.3,0.7666]
[1751480267400,0.1936,2573.6,2573.3,2.9368]
[1751480271395,1e-08,2573.7,2573.3,2.9368]
[1751480271596,1e-08,2573.7,2573.3,2.1702]
[1751480271597,0.1936,2573.5,2573.3,2.1702]
[1751480273404,1.0172,2573.5,2573.3,2.1702]
[1751480273609,0.1936,2573.5,2573.3,2.1702]
[1751480275408,1.99007071,2573.5,2573.3,2.1702]
[1751480275741,1.338,2573.4,2573.3,2.1702]
[1751480275903,28.43427152,2573.4,2573.3,2.1702]
[1751480276110,0.55,2572.9,2572.7,0.02]
[1751480276321,1.78166143,2572.8,2572.7,0.02]
[1751480276497,5.66847735,2572.8,2572.7,0.02]
[1751480276697,1.338,2572.8,2572.7,0.02]
[1751480277131,0.55,2572.8,2572.7,0.02]
[1751480277494,0.7915,2573.0,2572.7,0.02]
[1751480277495,0.55,2572.9,2572.7,0.02]
[1751480278306,0.7915,2573.0,2572.7,0.02]
[1751480280120,3.1199743,2573.0,2572.7,0.02]
[1751480280526,0.7915,2573.0,2572.7,0.02]
[1751480281509,0.55,2573.1,2572.7,0.02]
[1751480282230,4.43637651,2573.1,2572.7,0.02]
[1751480282432,0.55,2573.1,2572.7,0.02]
[1751480283215,0.1936,2572.8,2572.7,0.02]
[1751480283411,11.79647071,2573.5,2572.7,0.7856]
[1751480283624,0.1936,2573.0,2572.7,0.7856]
[1751480286211,0.81806528,2573.4,2572.7,0.7856]
[1751480286452,0.1936,2573.2,2572.8,0.7947]
[1751480286824,0.1936,2573.2,2572.8,2.7967]
[1751480291191,0.1936,2573.2,2572.8,0.7947]
[1751480291466,0.1936,2573.2,2572.9,2.002]
[1751480293268,0.1936,2573.2,2572.9,2.30303]
[1751480295287,0.1936,2573.2,2573.0,0.7684]
[1751480297487,10.00000001,2573.7,2573.0,0.7684]
[1751480297657,0.1936,2573.4,2573.0,0.7684]
[1751480301686,1e-08,2573.7,2573.0,4.6548462]
[1751480301890,1e-08,2573.7,2573.3,0.7536]
[1751480301891,0.1936,2573.6,2573.3,0.7536]
[1751480303705,1e-08,2573.7,2573.4,0.1936]
[1751480303995,1e-08,2573.7,2573.6,14.8537077]
[1751480305089,1e-08,2573.7,2573.6,10.9681]
[1751480305282,1e-08,2573.7,2573.6,17.34420199]
[1751480312019,1e-08,2573.7,2573.6,13.45859429]
[1751480312220,1e-08,2573.7,2573.6,17.34420199]
[1751480312533,1e-08,2573.7,2573.6,13.45859429]
[1751480313431,1e-08,2573.7,2573.6,17.34420199]
[1751480314519,1e-08,2573.7,2573.6,13.45859429]
[1751480315332,1e-08,2573.7,2573.6,23.49859429]
[1751480315902,1e-08,2573.7,2573.6,27.38420199]
[1751480319411,1e-08,2573.7,2573.6,27.38320199]
[1751480320933,1e-08,2573.7,2573.6,27.38220199]
[1751480321523,1e-08,2573.7,2573.6,13.45859429]
[1751480321724,1e-08,2573.7,2573.6,11.0051]
[1751480323021,1e-08,2573.7,2573.6,14.8907077]
[1751480323226,1e-08,2573.7,2573.6,24.8907077]
[1751480324025,1e-08,2573.7,2573.6,33.35954616]
[1751480331145,1e-08,2573.7,2573.6,21.0001]
[1751480331529,1e-08,2573.7,2573.6,24.33557975]
[1751480332138,1e-08,2573.7,2573.6,28.22118745]
[1751480332853,1e-08,2573.7,2573.6,16.29957975]
[1751480333148,1e-08,2573.7,2573.6,24.33557975]
[1751480333314,1e-08,2573.7,2573.6,28.22118745]
[1751480343087,0.02,2574.5,2574.2,3.88464088]
[1751480343290,0.02,2574.5,2574.4,0.1936]
[1751480343808,0.8219,2574.5,2574.4,10.024]
[1751480345896,0.02,2574.5,2574.4,10.024]
[1751480346122,0.02,2574.5,2574.4,10.2176]
[1751480348286,0.02,2574.5,2574.4,10.024]
[1751480350225,0.8023,2574.5,2574.4,1.992]
[1751480350391,0.8023,2574.5,2574.4,10.022]
[1751480350891,0.8023,2574.5,2574.1,0.1936]
[1751480351225,0.8023,2574.5,2574.2,8.029]
[1751480352327,0.8023,2574.5,2574.2,9.05046]
[1751480352621,0.8023,2574.5,2574.4,0.1936]
[1751480352823,0.8023,2574.5,2574.4,8.2226]
[1751480353132,0.02,2574.5,2574.4,8.2226]
[1751480354540,0.02,2574.5,2574.4,16.69143846]
[1751480354696,0.02,2574.5,2574.4,19.25732831]
[1751480354891,0.02,2574.5,2574.4,1.96488985]
[1751480355101,0.02,2574.5,2574.4,11.98488985]
[1751480355825,0.02,2574.5,2574.4,1.96488985]
[1751480356138,0.8154,2574.5,2574.4,10.2126]
[1751480358020,0.02,2574.5,2574.4,10.2126]
[1751480361806,0.02,2574.5,2574.4,20.2126]
[1751480362009,0.02,2574.5,2574.4,24.86630024]
[1751480362240,0.02,2574.5,2574.4,31.14799052]
[1751480362442,0.02,2574.5,2574.4,28.82095988]
[1751480362613,0.02,2574.5,2574.4,31.14893469]
[1751480363015,0.02,2574.5,2574.4,28.82095988]
[1751480365138,0.02,2574.5,2574.4,24.93255964]
[1751480365644,0.02,2574.5,2574.4,14.91755964]
[1751480365813,0.02,2574.5,2574.4,24.93255964]
[1751480368039,0.02,2574.5,2574.4,0.1936]
[1751480368241,0.02,2574.5,2574.4,2.1846]
[1751480368537,0.02,2574.5,2574.4,10.2066]
[1751480370406,0.02,2574.5,2574.4,24.87590024]
[1751480373338,0.02,2574.5,2574.4,27.20387505]
[1751480373538,0.02,2574.5,2574.4,31.21719929]
[1751480373734,0.02,2574.5,2574.4,31.76719929]
[1751480373937,0.01,2574.9,2574.7,0.55]
[1751480374144,0.78848956,2576.8,2575.2,3.88319353]
[1751480374326,0.7582,2576.7,2575.6,8.46883846]
[1751480374528,0.7582,2576.7,2575.7,8.02]
[1751480374758,0.807,2576.6,2575.7,8.02]
[1751480374950,10.0,2576.5,2575.7,8.02]
[1751480375253,0.7528,2576.3,2575.7,8.02]
[1751480380157,0.7528,2576.3,2575.6,10.0]
[1751480380471,0.7528,2576.3,2575.7,10.004]
[1751480380945,0.7528,2576.3,2575.8,10.004]
[1751480381146,0.7528,2576.3,2575.9,8.017]
[1751480381369,1.25232657,2576.2,2575.9,8.017]
[1751480382356,1.25232657,2576.2,2575.5,9.331]
[1751480382357,0.7973,2576.0,2575.5,9.331]
[1751480382673,4.67967145,2575.8,2575.5,9.331]
[1751480382870,0.7973,2575.6,2575.5,9.331]
[1751480383077,0.7973,2575.6,2575.4,1.987]
[1751480383078,0.7973,2575.5,2575.4,1.987]
[1751480384077,0.9909,2575.5,2575.4,1.987]
[1751480389672,4.07634121,2575.5,2575.0,0.1936]
[1751480389986,4.07634121,2575.5,2574.5,0.8257]
[1751480389987,4.67189902,2575.0,2574.6,1.987]
[1751480390157,0.1936,2574.8,2574.6,1.987]
[1751480395677,3.88448797,2574.4,2573.9,9.33]
[1751480395872,0.8134,2574.5,2574.0,1.987]
[1751480395873,0.1936,2574.1,2574.0,1.987]
[1751480396073,3.88542054,2573.8,2573.3,2.32525839]
[1751480396273,0.8024,2573.6,2573.4,0.1936]
[1751480396474,0.8024,2573.6,2573.2,1.987]
[1751480396905,0.1936,2573.4,2573.2,1.987]
[1751480397800,0.7614,2573.3,2573.2,1.987]
[1751480398093,2.4803962,2573.3,2573.2,1.987]
[1751480398252,0.7614,2573.3,2573.2,1.987]
[1751480399172,0.7614,2573.3,2572.8,0.1936]
[1751480399372,0.1936,2573.2,2572.8,0.1936]
[1751480399856,0.1936,2573.2,2572.7,0.02]
[1751480399857,0.1936,2572.8,2572.7,0.02]
[1751480400060,1.569,2572.8,2572.7,0.02]
[1751480400281,2.11457426,2572.8,2572.7,0.02]
[1751480400563,1.019,2572.8,2572.7,0.02]
[1751480401093,0.1936,2572.8,2572.7,0.02]
[1751480401295,0.8113,2573.1,2572.7,0.02]
[1751480401499,0.1936,2573.0,2572.8,1.985]
[1751480401697,0.19239566,2574.7,2572.9,1.0175]
[1751480401698,0.8113,2573.6,2572.9,1.0175]
[1751480402008,0.8113,2573.6,2572.9,8.835]
[1751480406875,0.8113,2573.6,2572.9,8.018]
[1751480407096,0.55,2573.5,2572.9,8.018]
[1751480407496,0.8113,2573.6,2572.9,8.018]
[1751480408498,0.7661,2573.8,2573.0,14.6997419]
[1751480408699,0.40764643,2574.6,2573.0,11.38897504]
[1751480408902,0.7661,2574.5,2573.3,3.88595745]
[1751480409074,0.55,2574.4,2573.4,2.7983]
[1751480409277,4.65035192,2574.5,2573.4,3.46672574]
[1751480409805,0.55,2574.3,2573.4,3.46672574]
[1751480410232,0.55,2574.4,2573.4,3.46672574]
[1751480410623,0.55,2574.4,2573.4,7.35260433]
[1751480411010,0.55,2574.4,2573.4,15.37160433]
[1751480411224,0.55,2574.4,2573.5,5.81150862]
[1751480411411,0.55,2574.4,2573.5,1.9257655]
[1751480411616,0.1936,2574.0,2573.5,2.1193655]
[1751480412007,0.1936,2574.0,2573.5,6.00510359]
[1751480412633,0.7661,2574.5,2573.5,5.81150359]
[1751480412810,0.1936,2574.2,2573.7,0.1936]
[1751480413012,0.1936,2574.2,2573.8,0.7789]
[1751480413212,0.1936,2574.2,2573.7,0.1936]
[1751480413435,0.1936,2574.2,2573.8,0.7503]
[1751480414139,0.1936,2574.2,2573.8,1.985]
[1751480417245,0.1936,2574.2,2573.7,0.1936]
[1751480417418,0.1936,2574.2,2573.8,1.985]
[1751480419544,0.8226,2574.1,2573.8,1.985]
[1751480419743,0.8226,2574.1,2572.5,16.95025839]
[1751480419744,0.8226,2574.1,2573.4,0.8072]
[1751480419915,0.1936,2573.8,2573.4,0.8072]
[1751480420113,0.1936,2573.8,2573.5,1.985]
[1751480420642,0.1936,2573.6,2573.5,1.985]
[1751480423442,0.1936,2573.6,2573.1,0.8075]
[1751480423646,0.7557,2573.7,2573.2,1.985]
[1751480423944,0.1936,2573.4,2573.2,1.985]
[1751480424148,0.7557,2573.4,2573.2,1.985]
[1751480424352,3.8860607,2573.3,2573.2,1.985]
[1751480424536,0.1936,2573.2,2572.8,1.985]
[1751480424741,0.1936,2573.0,2572.8,1.985]
[1751480425454,0.774,2572.9,2572.7,0.02]
[1751480425822,0.774,2573.2,2572.7,0.02]
[1751480426144,0.1936,2572.9,2572.8,0.8034]
[1751480427539,0.774,2573.4,2572.8,0.8034]
[1751480427730,0.1936,2573.2,2572.8,0.8034]
[1751480429953,0.1936,2573.0,2572.8,0.8034]
[1751480432745,8.779,2573.6,2572.8,0.8034]
[1751480433079,0.1936,2573.2,2572.8,0.8034]
[1751480433249,0.1936,2573.4,2572.9,0.1936]
[1751480433453,0.1936,2573.4,2572.9,2.1776]
[1751480433776,0.761,2573.3,2572.8,1.984]
[1751480433946,0.1936,2573.2,2572.8,2.1776]
[1751480435372,0.1936,2573.2,2572.8,4.74693]
[1751480435590,0.1936,2573.2,2572.8,2.1776]
[1751480438461,0.1936,2573.2,2572.9,0.7761]
[1751480438661,0.1936,2573.4,2572.9,0.9697]
[1751480441288,0.1936,2573.2,2572.9,0.7761]
[1751480441596,14.69951529,2573.8,2572.9,0.7761]
[1751480441758,0.1936,2573.3,2572.9,0.9697]
[1751480449180,0.1936,2573.7,2573.2,0.1936]
[1751480449395,0.1936,2573.7,2573.2,2.09448]
[1751480449568,0.1936,2573.7,2573.3,0.7992]
[1751480451374,0.1936,2573.9,2573.5,1.0015]
[1751480451791,1.58791438,2574.3,2573.5,0.8079]
[1751480451963,0.1936,2574.1,2573.7,0.1936]
[1751480454797,0.1936,2574.1,2572.7,2.34525839]
[1751480454798,0.1936,2573.7,2573.3,0.8079]
[1751480455000,3.88535026,2573.8,2573.2,1.984]
[1751480455212,0.1936,2573.2,2572.9,0.8079]
[1751480455572,0.1936,2573.2,2572.8,1.984]
[1751480455800,4.69792088,2573.5,2572.8,1.984]
[1751480455997,0.1936,2573.1,2572.8,1.984]
[1751480457581,8.8046,2573.8,2572.9,0.7683]
[1751480457782,0.1936,2573.3,2572.9,0.9619]
[1751480458169,8.8046,2573.8,2572.9,0.9619]
[1751480458170,8.8046,2573.8,2572.9,0.7683]
[1751480458370,0.1936,2573.5,2573.0,1.85750519]
[1751480458570,0.1936,2573.5,2573.0,11.85750519]
[1751480460587,0.1936,2573.5,2573.1,1.984]
[1751480462509,0.1936,2573.8,2573.3,0.1936]
[1751480462692,4.43496161,2574.1,2573.3,1.983]
[1751480462895,0.1936,2573.6,2573.3,1.983]
[1751480463218,0.1936,2573.4,2573.2,0.7667]
[1751480463505,0.1936,2573.4,2573.2,2.7497]
[1751480463712,0.1936,2573.4,2573.0,10.831]
[1751480463924,4.70948197,2573.7,2572.8,0.831]
[1751480464077,0.1936,2573.2,2572.9,11.983]
[1751480465484,0.9688,2573.2,2572.9,1.983]
[1751480465687,0.1936,2573.0,2572.9,1.983]
[1751480471784,0.1936,2573.0,2572.7,0.02]
[1751480472899,0.1936,2573.0,2572.7,2.05354]
[1751480479907,0.8288,2573.4,2572.9,8.46829655]
[1751480480109,0.1936,2573.3,2573.0,10.7555]
[1751480480527,0.1936,2573.3,2573.0,19.22379655]
[1751480480703,0.1936,2573.7,2573.3,0.7585]
[1751480480907,0.1936,2574.1,2573.8,10.8096]
[1751480481141,0.7606,2574.6,2573.9,9.996]
[1751480481305,0.1936,2574.5,2574.0,0.1936]
[1751480482805,0.7606,2574.6,2574.1,1.983]
[1751480483005,0.1936,2574.3,2574.1,1.983]
[1751480483301,0.7606,2574.9,2574.1,1.983]
[1751480483527,0.7606,2574.9,2574.1,2.1766]
[1751480483528,0.1936,2574.5,2574.1,2.1766]
[1751480483903,0.7606,2574.9,2574.2,0.8096]
[1751480484105,0.1936,2574.7,2574.2,1.0032]
[1751480484341,4.63516882,2575.1,2574.3,1.983]
[1751480484505,0.1936,2574.6,2574.3,1.983]
[1751480484833,0.7874,2574.6,2574.0,0.816]
[1751480485046,0.7874,2574.6,2574.1,9.994]
[1751480485047,0.1936,2574.2,2574.1,9.994]
[1751480485220,0.1936,2574.2,2574.1,1.983]
[1751480491375,0.1936,2574.2,2573.8,0.7608]
[1751480491590,0.1936,2574.2,2573.9,9.992]
[1751480492273,0.1936,2574.2,2574.0,1.07528]
[1751480492457,0.1936,2574.2,2573.9,9.992]
[1751480495246,0.1936,2574.2,2573.8,0.7608]
[1751480495445,0.1936,2574.2,2573.9,9.99]
[1751480503968,0.7926,2574.1,2573.9,8.007]
[1751480504174,0.55,2574.7,2573.9,8.007]
[1751480504380,1.90103982,2574.6,2573.5,10.8054]
[1751480504883,1.90103982,2574.6,2573.6,9.988]
[1751480506180,5.78517857,2574.6,2573.6,9.988]
[1751480506486,0.7509,2574.5,2573.6,9.988]
[1751480506782,0.65360786,2574.4,2573.6,9.988]
[1751480508886,0.7509,2574.5,2573.6,9.988]
[1751480509084,0.7509,2574.5,2573.6,13.87349922]
[1751480510406,0.7509,2574.5,2573.6,13.87352902]
[1751480511972,0.7509,2574.5,2573.6,9.988]
[1751480512358,0.7509,2574.5,2573.6,13.87357996]
[1751480512553,0.7509,2574.5,2573.7,1.85646457]
[1751480513377,0.7509,2574.5,2573.7,5.74184537]
[1751480513555,0.7509,2574.5,2573.7,1.85646457]
[1751480513884,0.1936,2574.3,2573.8,0.1936]
[1751480514184,0.1936,2574.3,2573.9,8.006]
[1751480516292,0.1936,2574.3,2573.9,9.8721509]
[1751480518899,0.1936,2574.7,2574.2,8.65399822]
[1751480519205,0.1936,2574.7,2574.3,9.986]
[1751480519374,0.1936,2574.7,2574.3,13.87052488]
[1751480519706,0.1936,2574.7,2574.4,0.7554]
[1751480519869,0.1936,2574.7,2574.4,2.41153982]
[1751480522092,0.8172,2574.6,2573.9,1.8661509]
[1751480522296,0.1936,2574.3,2574.0,9.984]
[1751480522473,0.1936,2574.3,2574.0,1.981]
[1751480524812,0.1936,2574.3,2574.0,2.99876]
[1751480525475,0.1936,2574.3,2574.0,1.981]
[1751480525877,0.1936,2574.3,2574.0,9.984]
[1751480526585,0.8172,2574.5,2574.0,9.984]
[1751480526771,1.0108,2574.5,2574.1,0.1936]
[1751480527178,0.1936,2574.5,2574.1,0.1936]
[1751480527380,0.1936,2574.5,2574.1,11.29396]
[1751480527686,0.7716,2574.4,2574.1,0.1936]
[1751480527877,0.1936,2574.1,2573.4,4.49685839]
[1751480528077,0.1936,2573.8,2573.4,4.30325839]
[1751480528290,0.1936,2573.8,2573.4,1.978]
[1751480528490,0.1936,2573.7,2573.4,1.978]
[1751480530994,0.1936,2573.7,2573.3,8.003]
[1751480530995,0.7506,2573.6,2573.3,1.979]
[1751480531196,0.1936,2573.5,2573.3,1.979]
[1751480532221,0.7646,2573.9,2573.3,3.7503]
[1751480532403,0.1936,2573.8,2573.3,3.9439]
[1751480532591,0.1936,2573.8,2573.4,8.003]
[1751480532778,0.1936,2573.8,2573.4,8.023]
[1751480535136,0.7646,2573.9,2573.4,8.023]
[1751480535468,0.9582,2573.9,2573.5,0.1936]
[1751480535738,0.1936,2573.8,2573.4,4.74]
[1751480536024,0.1936,2573.6,2573.4,4.74]
[1751480541149,0.1936,2573.6,2573.4,0.02]
[1751480541960,0.1936,2573.8,2573.5,0.7778]
[1751480542857,0.7958,2574.2,2573.5,0.7778]
[1751480543059,0.1936,2573.9,2573.5,0.1936]
[1751480543941,0.8047,2573.8,2573.5,0.1936]
[1751480544248,0.8047,2573.8,2573.5,1.979]
[1751480544448,0.1936,2573.7,2573.5,1.979]
[1751480545369,0.1936,2573.7,2573.4,1.999]
[1751480545534,0.1936,2573.7,2573.4,10.001]
[1751480546350,0.1936,2573.7,2573.4,1.999]
[1751480551452,0.7658,2574.3,2573.6,10.0]
[1751480551774,0.1936,2574.1,2573.7,8.001]
[1751480551974,0.1936,2574.1,2573.8,10.0]
[1751480552136,0.1936,2574.1,2573.9,0.8257]
[1751480552539,0.7859,2574.5,2573.9,2.70837]
[1751480552737,0.7859,2574.5,2574.0,8.001]
[1751480552738,0.1936,2574.3,2574.0,8.001]
[1751480558544,0.1936,2574.3,2574.0,9.978]
[1751480558982,0.8018,2574.7,2574.0,9.978]
[1751480559147,0.1936,2574.5,2574.0,14.05652079]
[1751480559353,12.3447189,2574.5,2574.1,2.1706]
[1751480559586,0.7611,2574.1,2573.7,0.1936]
[1751480559759,0.7611,2573.9,2573.5,4.72]
[1751480559961,0.1936,2573.8,2573.5,0.7531]
[1751480560381,0.1936,2573.8,2573.5,2.23595885]
[1751480560605,0.1936,2574.1,2573.7,0.1936]
[1751480560807,0.1936,2574.1,2573.8,10.0]
[1751480561124,0.1936,2574.3,2573.9,2.9906]
[1751480561324,0.9467,2574.5,2574.0,10.14409982]
[1751480561632,0.1936,2574.5,2574.0,10.33769982]
[1751480561785,0.7517,2574.7,2574.0,14.02909724]
[1751480561980,0.1936,2574.7,2574.2,1.0136]
[1751480562180,0.1936,2574.7,2574.2,2.51785386]
[1751480563299,0.1936,2574.7,2574.3,7.999]
[1751480567315,0.1936,2574.7,2574.3,1.977]
[1751480570006,0.7617,2574.9,2574.3,1.977]
[1751480570215,0.1936,2574.8,2574.3,2.1706]
[1751480570414,0.1936,2574.8,2574.4,1.40533003]
[1751480576225,0.1936,2574.8,2574.3,2.1706]
[1751480577990,0.1936,2574.8,2574.3,2.1906]
[1751480579527,0.1936,2574.8,2574.3,6.9106]
[1751480584296,0.1936,2574.8,2574.4,0.8304]
[1751480584633,0.1936,2574.8,2574.7,0.1936]
[1751480584634,0.7983,2574.8,2574.7,0.1936]
[1751480584803,0.7983,2574.8,2574.5,1.976]
[1751480585223,0.7983,2574.8,2574.4,0.1936]
[1751480585526,0.7983,2574.8,2574.4,10.1636]
[1751480586934,0.2036,2574.9,2574.4,10.1636]
[1751480587121,0.2036,2574.9,2574.4,22.42896]
[1751480588340,0.01,2574.9,2574.5,10.0]
[1751480588508,0.01,2574.9,2574.7,0.1936]
[1751480589039,0.01,2574.9,2574.7,8.1876]
[1751480589237,0.01,2574.9,2574.8,0.81876]
[1751480590020,0.01,2574.9,2574.7,0.1936]
[1751480590222,0.01,2574.9,2574.6,9.967]
[1751480590223,0.7773,2574.8,2574.6,9.967]
[1751480590423,0.7773,2574.8,2574.5,4.72]
[1751480591712,0.2036,2574.9,2574.5,1.49006]
[1751480591713,0.01,2574.9,2574.5,1.49006]
[1751480591907,0.01,2574.9,2574.6,0.1936]
[1751480592541,0.01,2574.9,2574.7,7.993]
[1751480594838,0.7771,2574.8,2574.5,9.967]
[1751480595154,0.9707,2574.8,2574.5,9.967]
[1751480596113,0.9707,2574.8,2574.3,0.2136]
[1751480596324,0.9707,2574.8,2574.4,9.966]
[1751480596844,0.9707,2574.8,2574.5,7.992]
[1751480598045,0.1936,2574.8,2574.5,7.992]
[1751480598258,0.01,2574.9,2574.5,7.992]
[1751480598461,0.01,2574.9,2574.6,0.1936]
[1751480598640,0.01,2574.9,2574.6,1.20956]
[1751480600054,0.01,2574.9,2574.7,4.90197886]
[1751480600367,0.01,2574.9,2574.8,17.991]
[1751480602875,0.01,2574.9,2574.8,10.0]
[1751480603042,0.01,2574.9,2574.8,19.964]
[1751480603399,0.01,2574.9,2574.7,1.974]
[1751480603666,0.9992,2574.8,2574.5,0.02]
[1751480603875,0.8056,2574.8,2574.5,0.02]
[1751480604055,1.27551178,2574.8,2574.5,0.02]
[1751480606745,0.8056,2574.8,2574.5,0.02]
[1751480609409,0.55,2574.7,2574.5,0.02]
[1751480609691,5.2472985,2574.6,2574.5,0.02]
[1751480611279,6.02373125,2574.6,2574.5,0.02]
[1751480611875,46.02373125,2574.6,2574.5,0.02]
[1751480612207,0.7889,2574.0,2573.7,9.335]
[1751480612395,0.7889,2574.0,2573.6,1.974]
[1751480612595,0.1936,2573.7,2573.6,1.974]
[1751480613305,0.1936,2574.0,2573.6,2.7993]
[1751480614904,0.7754012,2574.7,2573.6,6.68483995]
[1751480615092,0.1936,2574.4,2573.9,0.1936]
[1751480615292,0.1936,2574.4,2573.9,8.1836]
[1751480616097,0.1936,2574.2,2573.8,0.1936]
[1751480616280,0.1936,2574.2,2574.0,1.972]
[1751480616712,0.7893,2574.2,2574.0,1.972]
[1751480617420,0.1936,2574.0,2573.7,1.972]
[1751480617594,4.67402897,2574.2,2573.7,1.972]
[1751480617799,0.1936,2573.9,2573.7,1.972]
[1751480619186,4.6865697,2574.1,2573.7,1.972]
[1751480619583,0.8017,2574.1,2573.7,1.972]
[1751480620418,0.798,2574.3,2573.7,1.972]
[1751480620727,0.1936,2573.9,2573.7,1.972]
[1751480623404,0.1936,2573.9,2573.4,0.2136]
[1751480623405,0.1936,2573.9,2573.5,1.973]
[1751480623900,0.1936,2573.7,2573.5,1.973]
[1751480625622,0.1936,2573.7,2573.5,1.993]
[1751480628450,0.8236,2573.7,2573.5,0.02]